fUSD/lending_fUSD_20251226
["ID","MTS","AMOUNT","RATE_DAILY","PERIOD"]
[399873330,1766790641508,-3408.0,0.00014387,2]
[399873331,1766790641519,-513.669,0.00014432,2]
[399873332,1766790641529,-612.0,0.00014509,2]
[399873333,1766790641539,-1610.0,0.00014509,2]
[399873334,1766790641549,-1327.0,0.00014509,2]
[399873335,1766790641558,-432.0,0.00014509,2]
[399873336,1766790641567,-1263.0,0.00014509,2]
[399873337,1766790641582,-1198.0,0.00014509,2]
[399873338,1766790641592,-912.0,0.00014509,2]
[399873339,1766790641602,-2430.0,0.0001451,2]
[399873340,1766790641612,-564.0,0.0001451,2]
[399873341,1766790641621,-4632.0,0.0001451,2]
[399873342,1766790641632,-150.0,0.00014546,2]
[399873343,1766790641642,-150.0,0.00014546,2]
[399873344,1766790641652,-150.0,0.00014546,2]
[399873345,1766790641662,-150.0,0.00014546,2]
[399873346,1766790641671,-150.0,0.00014546,2]
[399873347,1766790641682,-500.0,0.00014546,2]
[399873348,1766790641692,-2995.04124879,0.00014753,2]
[399873349,1766790641701,-9566.77227469,0.00014753,2]
[399873350,1766790641711,-797.61675721,0.00014918,2]
[399873351,1766790641722,-502.55443721,0.00014921,2]
[399873352,1766790641731,-500.0,0.00014921,2]
[399873353,1766790641742,-1000.0,0.00014921,2]
[399873354,1766790641751,-163.66,0.0001497,2]
[399873355,1766790641762,-1000.0,0.00015026,2]
[399873356,1766790641773,-322.6107,0.00015107,2]
[399873357,1766790641783,-496.47127164,0.00015107,2]
[399873358,1766790641792,-500.0,0.00015107,2]
[399873359,1766790641802,-250.0,0.00015107,2]
[399873360,1766790641812,-500.0,0.00015107,2]
[399873361,1766790641822,-250.0,0.00015107,2]
[399873362,1766790641832,-250.0,0.00015107,2]
[399873363,1766790641842,-500.0,0.00015107,2]
[399873364,1766790641852,-500.0,0.00015107,2]
[399873365,1766790641862,-242.65269826,0.00015107,2]
[399873366,1766790641872,-500.0,0.00015107,2]
[399873367,1766790641882,-351.8282185,0.00015107,2]
[399873368,1766790641895,-250.0,0.00015107,2]
[399873369,1766790641908,-500.0,0.00015107,2]
[399873370,1766790641918,-2995.04124879,0.00015183,2]
[399873371,1766790641929,-9566.77227469,0.00015183,2]
[399873372,1766790641943,-230.12358953,0.00015288,2]
[399873373,1766790641956,-150.0,0.00015288,2]
[399873374,1766790641966,-150.0,0.00015288,2]
[399873375,1766790641976,-150.0,0.00015288,2]
[399873376,1766790641986,-150.00000001,0.00015288,2]
[399873377,1766790641997,-747.97,0.00015359,2]
[399873378,1766790642007,-151.0,0.00015409,2]
[399873379,1766790642017,-151.0,0.00015409,2]
[399873380,1766790642028,-151.0,0.00015417,2]
[399873381,1766790642038,-151.0,0.00015418,2]
[399873382,1766790642048,-1500.0,0.00015468,2]
[399873383,1766790642058,-554.17,0.00015589,2]
[399873384,1766790642067,-427.01,0.00015589,2]
[399873385,1766790642078,-2995.04124879,0.00015612,2]
[399873386,1766790642088,-9566.77227469,0.00015612,2]
[399873387,1766790642099,-432.0,0.00015676,2]
[399873388,1766790642110,-587.0,0.00015676,2]
[399873389,1766790642119,-500.0,0.00015732,2]
[399873390,1766790642130,-2351.0,0.00015772,2]
[399873391,1766790642143,-501.02283993,0.00015829,2]
[399873392,1766790642153,-500.0,0.00015973,2]
[399873393,1766790642163,-500.0,0.00015973,2]
[399873394,1766790642174,-500.0,0.00015973,2]
[399873395,1766790642183,-500.0,0.00015973,2]
[399873396,1766790642193,-500.0,0.00015973,2]
[399873397,1766790642203,-500.89276948,0.00015973,2]
[399873398,1766790642213,-500.0,0.00015973,2]
[399873399,1766790642223,-534.79304432,0.00015973,2]
[399873400,1766790642233,-500.0,0.00015973,2]
[399873401,1766790642243,-500.0,0.00015973,2]
[399873402,1766790642252,-500.0,0.00015973,2]
[399873403,1766790642262,-500.0,0.00015973,2]
[399873404,1766790642273,-500.0,0.00015973,2]
[399873405,1766790642283,-500.0,0.00015973,2]
[399873406,1766790642293,-500.0,0.00015973,2]
[399873407,1766790642303,-501.32987729,0.00015973,2]
[399873408,1766790642313,-500.91892275,0.00015973,2]
[399873409,1766790642323,-500.0,0.00015973,2]
[399873410,1766790642333,-500.0,0.00015973,2]
[399873411,1766790642344,-500.0,0.00015973,2]
[399873412,1766790642354,-500.0,0.00015973,2]
[399873413,1766790642363,-500.0,0.00015973,2]
[399873414,1766790642373,-500.0,0.00015973,2]
[399873415,1766790642382,-500.76503002,0.00015973,2]
[399873416,1766790642392,-500.0,0.00015973,2]
[399873417,1766790642402,-500.0,0.00015973,2]
[399873418,1766790642412,-500.0,0.00015973,2]
[399873419,1766790642421,-500.0,0.00015973,2]
[399873420,1766790642431,-500.0,0.00015973,2]
[399873421,1766790642441,-500.0,0.00015973,2]
[399873422,1766790642451,-500.0,0.00015973,2]
[399873423,1766790642461,-500.0,0.00015973,2]
[399873424,1766790642472,-500.0,0.00015973,2]
[399873425,1766790642482,-500.0,0.00015973,2]
[399873426,1766790642492,-500.0,0.00015973,2]
[399873427,1766790642501,-500.0,0.00015973,2]
[399873428,1766790642511,-500.0,0.00015973,2]
[399873429,1766790642520,-500.0,0.00015973,2]
[399873430,1766790642530,-500.0,0.00015973,2]
[399873431,1766790642540,-500.0,0.00015973,2]
[399873432,1766790642549,-500.0,0.00015973,2]
[399873433,1766790642559,-500.0,0.00015973,2]
[399873434,1766790642568,-228.68,0.00015973,2]
[399873435,1766790642578,-150.0,0.00016,2]
[399873436,1766790642588,-731.69372668,0.00016016,2]
[399873437,1766790642598,-2995.04124879,0.00016041,2]
[399873438,1766790642608,-9566.77227469,0.00016041,2]
[399873439,1766790642617,-920.05503367,0.00016247,2]
[399873440,1766790642627,-228.68,0.00016247,2]
[399873441,1766790642637,-920.05503367,0.00016301,2]
[399873442,1766790642647,-920.05503367,0.00016356,2]
[399873443,1766790642657,-476.7,0.00016402,2]
[399873444,1766790642667,-170.82,0.00016411,2]
[399873445,1766790642677,-170.82,0.00016411,2]
[399873446,1766790642687,-170.82,0.00016411,2]
[399873447,1766790642697,-170.82,0.00016411,2]
[399873448,1766790642707,-345.17,0.00016411,2]
[399873449,1766790642717,-170.82,0.00016411,2]
[399873450,1766790642726,-170.82,0.00016411,2]
[399873451,1766790642736,-170.82,0.00016411,2]
[399873452,1766790642746,-170.82,0.00016411,2]
[399873453,1766790642755,-170.82,0.00016411,2]
[399873454,1766790642765,-170.82,0.00016411,2]
[399873455,1766790642775,-170.82,0.00016411,2]
[399873456,1766790642785,-170.82,0.00016411,2]
[399873457,1766790642795,-170.82,0.00016411,2]
[399873458,1766790642804,-150.0,0.00016438,2]
[399873459,1766790642814,-438.2,0.00016438,2]
[399873460,1766790642823,-150.0,0.00016438,2]
[399873461,1766790642834,-500.0,0.00016438,2]
[399873462,1766790642844,-500.0,0.00016438,2]
[399873463,1766790642862,-500.0,0.00016438,2]
[399873464,1766790642871,-500.0,0.00016438,2]
[399873465,1766790642882,-500.0,0.00016438,2]
[399873466,1766790642891,-500.0,0.00016438,2]
[399873467,1766790642901,-500.0,0.00016438,2]
[399873468,1766790642911,-500.0,0.00016438,2]
[399873469,1766790642920,-500.0,0.00016438,2]
[399873470,1766790642930,-500.0,0.00016438,2]
[399873471,1766790642939,-500.0,0.00016438,2]
[399873472,1766790642953,-500.0,0.00016438,2]
[399873473,1766790642962,-500.0,0.00016438,2]
[399873474,1766790642972,-500.0,0.00016438,2]
[399873475,1766790642982,-500.0,0.00016438,2]
[399873476,1766790642993,-450.32938184,0.00016438,2]
[399873477,1766790643003,-500.0,0.00016438,2]
[399873478,1766790643013,-500.0,0.00016438,2]
[399873479,1766790643024,-500.0,0.00016438,2]
[399873480,1766790643034,-500.0,0.00016438,2]
[399873481,1766790643044,-920.05503367,0.00016438,2]
[399873482,1766790643054,-164.56,0.0001644,2]
[399873483,1766790643064,-164.56,0.0001644,2]
[399873484,1766790643073,-164.56,0.0001644,2]
[399873485,1766790643083,-164.56,0.0001644,2]
[399873486,1766790643094,-164.56,0.00016461,2]
[399873487,1766790643104,-150.0,0.00016465,2]
[399873488,1766790643113,-150.0,0.00016465,2]
[399873489,1766790643123,-2995.04124879,0.00016471,2]
[399873490,1766790643133,-9566.77227469,0.00016471,2]
[399873491,1766790643143,-334.5472959,0.00016476,2]
[399873492,1766790643152,-203.08372064,0.00016493,2]
[399873494,1766790643161,-200.0,0.00016493,2]
[399873496,1766790643171,-920.05503367,0.00016493,2]
[399873498,1766790643180,-1000.0,0.00016521,2]
[399873499,1766790643189,-500.47493987,0.00016521,2]
[399873500,1766790643199,-501.55278646,0.00016521,2]
[399873501,1766790643209,-582.06225981,0.00016521,2]
[399873502,1766790643219,-501.09853648,0.00016521,2]
[399873503,1766790643228,-299.72437888,0.00016521,2]
[399873504,1766790643237,-501.27464861,0.00016521,2]
[399873505,1766790643247,-501.54516283,0.00016521,2]
[399873506,1766790643256,-500.0,0.00016521,2]
[399873507,1766790643265,-501.52379786,0.00016521,2]
[399873508,1766790643276,-502.59482652,0.00016521,2]
[399873509,1766790643286,-501.64987831,0.00016521,2]
[399873510,1766790643295,-500.0,0.00016521,2]
[399873511,1766790643305,-500.0,0.00016521,2]
[399873512,1766790643315,-500.0,0.00016521,2]
[399873513,1766790643324,-501.47129167,0.00016521,2]
[399873514,1766790643334,-502.51080525,0.00016521,2]
[399873515,1766790643344,-502.36597635,0.00016521,2]
[399873516,1766790643354,-501.62552641,0.00016521,2]
[399873517,1766790643364,-501.45598765,0.00016521,2]
[399873518,1766790643374,-502.60700884,0.00016521,2]
[399873519,1766790643384,-500.63339465,0.00016521,2]
[399873520,1766790643393,-501.13015343,0.00016521,2]
[399873521,1766790643403,-500.56640206,0.00016521,2]
[399873522,1766790643413,-500.64440302,0.00016521,2]
[399873523,1766790643423,-501.59555949,0.00016521,2]
[399873524,1766790643433,-502.41625795,0.00016521,2]
[399873525,1766790643443,-502.47387917,0.00016521,2]
[399873526,1766790643453,-501.73324703,0.00016521,2]
[399873527,1766790643462,-501.87578424,0.00016521,2]
[399873528,1766790643472,-1000.0,0.00016521,2]
[399873529,1766790643482,-502.12022851,0.00016521,2]
[399873530,1766790643493,-500.0,0.00016521,2]
[399873531,1766790643503,-501.50162149,0.00016521,2]
[399873532,1766790643513,-501.68433486,0.00016521,2]
[399873533,1766790643523,-500.0,0.00016521,2]
[399873534,1766790643533,-501.11243269,0.00016521,2]
[399873535,1766790643543,-228.68,0.00016521,2]
[399873536,1766790643553,-920.05503367,0.00016548,2]
[399873537,1766790643563,-151.69474188,0.00016621,2]
[399873538,1766790643573,-920.05503367,0.0001663,2]
[399873539,1766790643584,-653.33262019,0.0001666,2]
[399873540,1766790643595,-920.05503367,0.00016685,2]
[399873541,1766790643605,-164.83,0.00016712,2]
[399873542,1766790643615,-920.05503367,0.00016767,2]
[399873543,1766790643625,-228.68,0.00016795,2]
[399873544,1766790643634,-920.05503367,0.00016822,2]
[399873545,1766790643644,-310.58220187,0.0001683,2]
[399873546,1766790643654,-802.7272001,0.0001683,2]
[399873547,1766790643663,-200.0,0.00016863,2]
[399873548,1766790643674,-200.0,0.00016864,2]
[399873549,1766790643683,-920.05503367,0.00016877,2]
[399873550,1766790643693,-2995.04124879,0.000169,2]
[399873551,1766790643704,-9566.77227469,0.000169,2]
[399873552,1766790643714,-797.61675721,0.000169,2]
[399873553,1766790643724,-228.55347716,0.000169,2]
[399873554,1766790643734,-228.26447957,0.000169,2]
[399873555,1766790643744,-194.15320872,0.000169,2]
[399873556,1766790643753,-2238.14376668,0.000169,2]
[399873557,1766790643764,-1000.0,0.00016904,2]
[399873558,1766790643774,-920.05503367,0.00016959,2]
[399873559,1766790643784,-150.12296232,0.00016973,2]
[399873560,1766790643794,-163.53521313,0.00016973,2]
[399873561,1766790643804,-150.0,0.00016973,2]
[399873562,1766790643814,-150.0,0.00016973,2]
[399873563,1766790643824,-150.0,0.00016986,2]
[399873564,1766790643834,-150.00000001,0.00016986,2]
[399873565,1766790643844,-150.00000045,0.00016986,2]
[399873566,1766790643853,-164.56,0.0001699,2]
[399873567,1766790643863,-164.56,0.0001699,2]
[399873568,1766790643873,-164.56,0.0001699,2]
[399873569,1766790643883,-164.56,0.0001699,2]
[399873570,1766790643893,-4407.103658,0.00016997,2]
[399873571,1766790643903,-300.0,0.00016999,2]
[399873572,1766790643913,-300.0,0.00016999,2]
[399873573,1766790643923,-300.0,0.00016999,2]
[399873574,1766790643933,-186384.78299157,0.00017,2]
[399873575,1766790643943,-2312722.62146293,0.00017,2]
[399873576,1766790643953,-256297.01316895,0.00017,2]
[399873577,1766790644416,-4998.805,0.0001451,2]
[399873578,1766790644426,-782421.11043643,0.00017,2]
[399873582,1766790646443,-13839.554932,0.00017,2]
[399873583,1766790646456,-83355.74826646,0.00017,2]
[399873585,1766790646727,-692.82438042,0.00017,2]
[399873611,1766790818117,-260.55783907,0.00012775,2]
[399873612,1766790822499,-181.99688653,0.00012775,2]
[399873619,1766791158370,10000.0,0.00030137,120]
[399873620,1766791226514,384.67268853,0.00030136,120]
[399873622,1766791418070,-169.35454846,0.00012775,2]
[399873623,1766791455476,163.27,0.00011826,2]
[399873660,1766791831395,-344.31345154,0.00012775,2]
[399873662,1766791831407,-261.39914417,0.00012899,2]
[399873663,1766791831419,-270.34536065,0.00012899,2]
[399873664,1766791831430,-179.32078109,0.00012899,2]
[399873665,1766791831443,-1155.10411018,0.00012899,2]
[399873666,1766791831455,-259.39015822,0.00012899,2]
[399873667,1766791831467,-257.87596969,0.00012899,2]
[399873668,1766791831482,-729.51283028,0.00012899,2]
[399873669,1766791831494,-478.39972665,0.00012899,2]
[399873670,1766791831504,-1200.0,0.00012934,2]
[399873671,1766791831514,-300.0,0.00012934,2]
[399873672,1766791831525,-150.0,0.00012934,2]
[399873673,1766791831535,-395.95052191,0.00012935,2]
[399873674,1766791831545,-500.0,0.00012935,2]
[399873675,1766791831555,-500.0,0.00012935,2]
[399873676,1766791831566,-161.14540058,0.00012935,2]
[399873677,1766791831576,-500.0,0.00012935,2]
[399873678,1766791831586,-527.31494376,0.00012935,2]
[399873679,1766791831596,-500.0,0.00012935,2]
[399873680,1766791831606,-500.0,0.00012935,2]
[399873681,1766791831616,-500.0,0.00012935,2]
[399873682,1766791831626,-500.0,0.00012935,2]
[399873684,1766791831636,-500.0,0.00012935,2]
[399873686,1766791831646,-295.12839108,0.00012935,2]
[399873688,1766791831656,-1000.0,0.00012936,2]
[399873690,1766791831666,-42998.31629763,0.00012936,2]
[399873692,1766791831683,-287.59,0.00012936,2]
[399873694,1766791831696,-811.87388493,0.00012936,2]
[399873697,1766791831715,-1168.18354245,0.00012936,2]
[399873720,1766791837456,-1436.31215176,0.00012936,2]
[399873721,1766791837491,-517.93632852,0.00012936,2]
[399873722,1766791837603,-908.48151348,0.00012936,2]
[399873746,1766791839580,-1300.94465244,0.00012936,2]
[399873747,1766791839592,-3112.20531399,0.00012936,2]
[399873748,1766791839852,-8808.39523621,0.00012936,2]
[399873749,1766791839876,-380.9790429,0.00012936,2]
[399873750,1766791839888,-938268.78203569,0.00012936,2]
[399873751,1766791839898,-3059.60357609,0.00013344,2]
[399873753,1766791839908,-3159.61249717,0.00013533,2]
[399873754,1766791839918,-4340.94232746,0.00013582,2]
[399873755,1766791839928,-514.24,0.00013699,2]
[399873756,1766791839937,-3059.60357609,0.00013788,2]
[399873757,1766791839947,-199.39689062,0.00013843,2]
[399873758,1766791839956,-255.0,0.00014033,2]
[399873759,1766791839965,-1475.4671258,0.0001407,2]
[399873760,1766791839975,-1000.0,0.0001417,2]
[399873761,1766791839984,-1000.0,0.0001417,2]
[399873762,1766791839994,-420.0,0.00014185,2]
[399873763,1766791840004,-1680.0,0.00014227,2]
[399873764,1766791840014,-3059.60357609,0.00014233,2]
[399873765,1766791840023,-166.66,0.0001432,2]
[399873766,1766791840032,-1000.0,0.0001437,2]
[399873767,1766791840042,-500.0,0.00014373,2]
[399873768,1766791840051,-500.0,0.00014373,2]
[399873769,1766791840061,-339.47657605,0.00014373,2]
[399873770,1766791840070,-276.52041223,0.00014373,2]
[399873771,1766791840080,-500.0,0.00014373,2]
[399873772,1766791840090,-531.7445048,0.00014408,2]
[399873773,1766791840099,-166.66,0.00014621,2]
[399873774,1766791840109,-1000.0,0.0001467,2]
[399873775,1766791840119,-3059.60357609,0.00014677,2]
[399873776,1766791840128,-34980.86,0.00014735,2]
[399873777,1766791840138,-289.4,0.00014799,2]
[399873778,1766791840147,-200.0,0.00014801,2]
[399873779,1766791840159,-150.0,0.00014882,2]
[399873780,1766791840168,-432.0,0.00014916,2]
[399873781,1766791840178,-1263.0,0.00014916,2]
[399873782,1766791840187,-912.0,0.00014916,2]
[399873783,1766791840197,-1198.0,0.00014916,2]
[399873784,1766791840207,-3458.0,0.00014916,2]
[399873785,1766791840216,-612.0,0.00014916,2]
[399873786,1766791840226,-1610.0,0.00014916,2]
[399873787,1766791840235,-500.0,0.00014916,2]
[399873788,1766791840245,-1000.0,0.00014921,2]
[399873789,1766791840255,-502.55443721,0.00014921,2]
[399873790,1766791840264,-500.0,0.00014921,2]
[399873791,1766791840275,-166.66,0.00014923,2]
[399873792,1766791840284,-1000.0,0.0001497,2]
[399873793,1766791840294,-3059.60357609,0.00015122,2]
[399873794,1766791840304,-433.0,0.00015223,2]
[399873795,1766791840313,-166.66,0.00015224,2]
[399873796,1766791840323,-578.20924308,0.00015246,2]
[399873797,1766791840332,-500.0,0.00015246,2]
[399873798,1766791840342,-500.0,0.00015246,2]
[399873799,1766791840351,-250.0,0.00015246,2]
[399873800,1766791840361,-500.0,0.00015246,2]
[399873801,1766791840371,-500.0,0.00015246,2]
[399873802,1766791840380,-500.0,0.00015246,2]
[399873803,1766791840389,-500.0,0.00015246,2]
[399873804,1766791840399,-500.0,0.00015246,2]
[399873805,1766791840408,-496.47127164,0.00015246,2]
[399873806,1766791840417,-500.0,0.00015246,2]
[399873807,1766791840426,-500.0,0.00015246,2]
[399873808,1766791840435,-500.0,0.00015246,2]
[399873809,1766791840446,-500.0,0.00015246,2]
[399873810,1766791840456,-500.0,0.00015246,2]
[399873811,1766791840465,-500.0,0.00015246,2]
[399873812,1766791840474,-500.0,0.00015246,2]
[399873813,1766791840484,-351.8282185,0.00015246,2]
[399873814,1766791840493,-500.0,0.00015246,2]
[399873815,1766791840503,-250.0,0.00015246,2]
[399873816,1766791840512,-500.0,0.00015246,2]
[399873817,1766791840521,-500.0,0.00015246,2]
[399873818,1766791840531,-500.0,0.00015246,2]
[399873819,1766791840540,-500.0,0.00015246,2]
[399873820,1766791840550,-500.0,0.00015246,2]
[399873821,1766791840559,-500.0,0.00015246,2]
[399873822,1766791840569,-500.0,0.00015246,2]
[399873823,1766791840579,-500.0,0.00015246,2]
[399873824,1766791840588,-500.0,0.00015246,2]
[399873825,1766791840598,-500.0,0.00015246,2]
[399873826,1766791840607,-500.0,0.00015246,2]
[399873827,1766791840617,-250.0,0.00015246,2]
[399873828,1766791840627,-200.0,0.00015246,2]
[399873829,1766791840636,-250.0,0.00015246,2]
[399873830,1766791840645,-207.4,0.00015246,2]
[399873831,1766791840653,-250.0,0.00015246,2]
[399873832,1766791840663,-250.0,0.00015246,2]
[399873833,1766791840672,-322.6107,0.00015246,2]
[399873834,1766791840682,-250.0,0.00015246,2]
[399873835,1766791840691,-250.0,0.00015246,2]
[399873836,1766791840701,-166.67,0.00015272,2]
[399873837,1766791840711,-150.0,0.00015288,2]
[399873838,1766791840720,-230.12358953,0.00015288,2]
[399873839,1766791840730,-150.0,0.00015288,2]
[399873840,1766791840739,-150.00000001,0.00015288,2]
[399873841,1766791840749,-150.00000001,0.00015288,2]
[399873842,1766791840759,-2365.47,0.00015314,2]
[399873843,1766791840768,-151.0,0.00015451,2]
[399873844,1766791840777,-151.0,0.00015458,2]
[399873845,1766791840786,-1500.0,0.00015468,2]
[399873846,1766791840796,-166.66,0.00015526,2]
[399873847,1766791840806,-342.0,0.00015557,2]
[399873848,1766791840816,-3059.60357609,0.00015566,2]
[399873849,1766791840825,-2351.0,0.0001565,2]
[399873850,1766791840835,-3402.0,0.00015745,2]
[399873851,1766791840844,-166.66,0.00015827,2]
[399873852,1766791840854,-501.02283993,0.00015829,2]
[399873853,1766791840864,-531.7445048,0.00015916,2]
[399873854,1766791840873,-250.0,0.00015931,2]
[399873855,1766791840884,-500.89276948,0.00015973,2]
[399873856,1766791840896,-500.0,0.00015973,2]
[399873857,1766791840906,-500.0,0.00015973,2]
[399873858,1766791840915,-500.0,0.00015973,2]
[399873859,1766791840924,-500.0,0.00015973,2]
[399873860,1766791840934,-500.0,0.00015973,2]
[399873861,1766791840943,-534.79304432,0.00015973,2]
[399873862,1766791840952,-500.0,0.00015973,2]
[399873863,1766791840965,-500.0,0.00015973,2]
[399873864,1766791840975,-500.0,0.00015973,2]
[399873865,1766791840985,-500.0,0.00015973,2]
[399873866,1766791840994,-500.0,0.00015973,2]
[399873867,1766791841004,-500.0,0.00015973,2]
[399873868,1766791841014,-500.0,0.00015973,2]
[399873869,1766791841024,-500.0,0.00015973,2]
[399873870,1766791841033,-500.0,0.00015973,2]
[399873871,1766791841044,-500.0,0.00015973,2]
[399873872,1766791841053,-500.0,0.00015973,2]
[399873873,1766791841064,-500.91892275,0.00015973,2]
[399873874,1766791841074,-500.0,0.00015973,2]
[399873875,1766791841083,-500.0,0.00015973,2]
[399873876,1766791841093,-501.32987729,0.00015973,2]
[399873877,1766791841103,-500.0,0.00015973,2]
[399873878,1766791841112,-500.76503002,0.00015973,2]
[399873879,1766791841122,-500.0,0.00015973,2]
[399873880,1766791841132,-500.0,0.00015973,2]
[399873881,1766791841141,-500.0,0.00015973,2]
[399873882,1766791841152,-500.0,0.00015973,2]
[399873883,1766791841161,-500.0,0.00015973,2]
[399873884,1766791841171,-500.0,0.00015973,2]
[399873885,1766791841181,-500.0,0.00015973,2]
[399873886,1766791841190,-500.0,0.00015973,2]
[399873887,1766791841200,-500.0,0.00015973,2]
[399873888,1766791841210,-500.0,0.00015973,2]
[399873889,1766791841221,-500.0,0.00015973,2]
[399873890,1766791841232,-500.0,0.00015973,2]
[399873891,1766791841242,-500.0,0.00015973,2]
[399873892,1766791841251,-500.0,0.00015973,2]
[399873893,1766791841261,-500.0,0.00015973,2]
[399873894,1766791841271,-500.0,0.00015973,2]
[399873895,1766791841281,-228.68,0.00015973,2]
[399873896,1766791841291,-454219.87192778,0.00016,4]
[399873897,1766791841301,-3059.60357609,0.00016011,2]
[399873898,1766791841312,-731.69372668,0.00016016,2]
[399873899,1766791841323,-5000.00430086,0.000162,5]
[399873900,1766791841332,-228.68,0.00016247,2]
[399873901,1766791841342,-1000.0,0.0001637,2]
[399873902,1766791841352,-178.57,0.00016411,2]
[399873903,1766791841362,-178.57,0.00016411,2]
[399873904,1766791841372,-178.57,0.00016411,2]
[399873905,1766791841382,-178.57,0.00016411,2]
[399873906,1766791841392,-178.57,0.00016411,2]
[399873907,1766791841401,-178.57,0.00016411,2]
[399873908,1766791841411,-178.57,0.00016411,2]
[399873909,1766791841421,-178.57,0.00016411,2]
[399873910,1766791841431,-178.57,0.00016411,2]
[399873911,1766791841440,-178.57,0.00016411,2]
[399873912,1766791841450,-178.57,0.00016411,2]
[399873913,1766791841460,-438.2,0.00016438,2]
[399873914,1766791841470,-150.0,0.00016438,2]
[399873915,1766791841480,-150.0,0.00016438,2]
[399873916,1766791841490,-500.0,0.00016438,2]
[399873917,1766791841500,-500.0,0.00016438,2]
[399873918,1766791841510,-500.0,0.00016438,2]
[399873919,1766791841519,-500.0,0.00016438,2]
[399873920,1766791841529,-500.0,0.00016438,2]
[399873921,1766791841539,-500.0,0.00016438,2]
[399873922,1766791841549,-500.0,0.00016438,2]
[399873923,1766791841559,-500.0,0.00016438,2]
[399873924,1766791841569,-450.0,0.00016438,2]
[399873925,1766791841578,-500.0,0.00016438,2]
[399873926,1766791841588,-500.0,0.00016438,2]
[399873927,1766791841597,-500.0,0.00016438,2]
[399873928,1766791841607,-500.0,0.00016438,2]
[399873929,1766791841617,-500.0,0.00016438,2]
[399873930,1766791841627,-500.0,0.00016438,2]
[399873931,1766791841636,-500.0,0.00016438,2]
[399873932,1766791841646,-500.0,0.00016438,2]
[399873933,1766791841655,-500.0,0.00016438,2]
[399873934,1766791841664,-500.0,0.00016438,2]
[399873935,1766791841674,-500.0,0.00016438,2]
[399873936,1766791841693,-500.0,0.00016438,2]
[399873937,1766791841703,-500.0,0.00016438,2]
[399873938,1766791841712,-500.0,0.00016438,2]
[399873939,1766791841722,-500.0,0.00016438,2]
[399873940,1766791841731,-500.0,0.00016438,2]
[399873941,1766791841740,-500.0,0.00016438,2]
[399873942,1766791841749,-500.0,0.00016438,2]
[399873943,1766791841758,-500.0,0.00016438,2]
[399873944,1766791841767,-619.58203715,0.00016438,2]
[399873945,1766791841776,-500.0,0.00016438,2]
[399873946,1766791841786,-9989.14,0.00016438,2]
[399873947,1766791841795,-164.56,0.0001644,2]
[399873948,1766791841805,-164.56,0.0001644,2]
[399873949,1766791841814,-164.56,0.0001644,2]
[399873950,1766791841824,-164.56,0.0001644,2]
[399873951,1766791841833,-164.56,0.0001644,2]
[399873952,1766791841843,-164.56,0.0001644,2]
[399873953,1766791841852,-164.56,0.0001644,2]
[399873954,1766791841862,-3059.60357609,0.00016455,2]
[399873955,1766791841873,-150.0,0.00016465,2]
[399873956,1766791841883,-150.0,0.00016465,2]
[399873957,1766791841896,-203.08372064,0.00016493,2]
[399873958,1766791841906,-200.0,0.00016493,2]
[399873959,1766791841915,-643.0,0.00016517,2]